[Event "Championnat du monde jeunes U10"]
[Date "2024.11.24"]
[White "Friscic, Jakov"]
[Black "Wu, Chenyu"]
[WhiteElo "1685"]
[BlackElo "1503"]
[Round "9.9"]
[Result "1/2-1/2"]
[TimeControl "5400+30"]

1. d4 {[%clk 1:30:58]} 1... d5 {[%clk 1:30:29]} 2. c4 {[%clk 1:31:22]} 2... e6
{[%clk 1:30:55]} 3. Nc3 {[%clk 1:31:45]} 3... Nf6 {[%clk 1:31:19]} 4. cxd5
{[%clk 1:32:09]} 4... exd5 {[%clk 1:31:44]} 5. Bg5 {[%clk 1:32:29]} 5... Nbd7
{[%clk 1:31:14]} 6. Qc2 {[%clk 1:32:28]} 6... Be7 {[%clk 1:31:36]} 7. e3 {[%clk
1:32:50]} 7... h6 {[%clk 1:31:57]} 8. Bh4 {[%clk 1:33:14]} 8... O-O {[%clk
1:32:14]} 9. Bd3 {[%clk 1:33:19]} 9... c6 {[%clk 1:32:25]} 10. Nge2 {[%clk
1:33:38]} 10... Re8 {[%clk 1:32:06]} 11. O-O {[%clk 1:33:55]} 11... Ne4 {[%clk
1:29:25]} 12. Bxe7 {[%clk 1:33:19]} 12... Qxe7 {[%clk 1:29:04]} 13. Nxe4 {[%clk
1:29:23]} 13... dxe4 {[%clk 1:29:09]} 14. Bc4 {[%clk 1:29:43]} 14... Nb6 {[%clk
1:28:55]} 15. Rac1 {[%clk 1:25:58]} 15... Nxc4 {[%clk 1:27:31]} 16. Qxc4 {[%clk
1:26:27]} 16... Be6 {[%clk 1:26:27]} 17. Qa4 {[%clk 1:26:09]} 17... Bg4 {[%clk
1:18:17]} 18. Ng3 {[%clk 1:21:51]} 18... Qh4 {[%clk 1:00:33]} 19. Qb3 {[%clk
1:15:46]} 19... Re7 {[%clk 0:56:18]} 20. d5 {[%clk 1:14:52]} 20... cxd5 {[%clk
0:55:54]} 21. Qxd5 {[%clk 1:12:46]} 21... Rae8 {[%clk 0:49:23]} 22. Nf5 {[%clk
1:08:17]} 22... Bxf5 {[%clk 0:49:15]} 23. Qxf5 {[%clk 1:08:46]} 23... Re5 {[%clk
0:48:02]} 24. Qd7 {[%clk 1:08:43]} 24... R5e7 {[%clk 0:39:38]} 25. Qd5 {[%clk
1:06:14]} 25... Qf6 {[%clk 0:39:41]} 26. Rc2 Qb6 {[%clk 0:36:37]} 27. Rfc1
{[%clk 0:55:20]} 27... Rd8 {[%clk 0:35:59]} 28. Rc8 {[%clk 0:53:35]} 28... Ree8
{[%clk 0:34:57]} 29. Rxd8 {[%clk 0:50:20]} 29... Rxd8 {[%clk 0:34:34]} 30. Qe5
{[%clk 0:47:25]} 30... Qc6 {[%clk 0:33:48]} 31. Rf1 {[%clk 0:46:25]} 31... Qc2
{[%clk 0:33:03]} 32. Qb5 {[%clk 0:44:16]} 32... Rd1 {[%clk 0:25:09]} 33. Rxd1
{[%clk 0:44:21]} 33... Qxd1+ {[%clk 0:25:34]} 34. Qf1 {[%clk 0:44:44]} 34... Qc2
{[%clk 0:26:03]} 35. Qa1 {[%clk 0:45:06]} 35... a5 {[%clk 0:26:17]} 36. b3
{[%clk 0:44:51]} 36... b5 {[%clk 0:25:52]} 37. g3 {[%clk 0:44:22]} 37... b4
{[%clk 0:24:44]} 38. Kg2 {[%clk 0:43:53]} 38... Kh7 {[%clk 0:23:17]} 39. h4
{[%clk 0:42:43]} 39... Kg8 {[%clk 0:20:24]} 40. Kg1 {[%clk 0:42:27]} 1/2-1/2

[Variant "Standard"]
[Site "Europe Echecs"]

[Event "Championnat du monde jeunes U10"]
[Date "2024.11.24"]
[White "Thorulsley, Kairaav"]
[Black "Barsov, Mikhail"]
[WhiteElo "1520"]
[BlackElo "1668"]
[Round "9.10"]
[Result "0-1"]
[TimeControl "5400+30"]

1. d4 {[%clk 1:30:58]} 1... d5 {[%clk 1:30:58]} 2. Nc3 {[%clk 1:31:22]} 2... Nf6
{[%clk 1:31:25]} 3. Bf4 {[%clk 1:31:48]} 3... e6 {[%clk 1:31:42]} 4. e3 {[%clk
1:32:07]} 4... Bb4 {[%clk 1:32:08]} 5. Bd3 {[%clk 1:32:24]} 5... c5 {[%clk
1:32:27]} 6. dxc5 {[%clk 1:31:57]} 6... Nbd7 {[%clk 1:32:48]} 7. Ne2 {[%clk
1:07:57]} 7... a6 {[%clk 1:32:50]} 8. a3 {[%clk 1:05:21]} 8... Bxc5 {[%clk
1:30:45]} 9. Bg5 {[%clk 1:03:03]} 9... h6 {[%clk 1:24:13]} 10. Bxf6 {[%clk
1:02:33]} 10... Nxf6 {[%clk 1:24:28]} 11. O-O {[%clk 1:00:22]} 11... O-O {[%clk
1:21:31]} 12. Nf4 {[%clk 0:57:11]} 12... b5 {[%clk 1:17:15]} 13. Qd2 {[%clk
0:40:55]} 13... Bb7 {[%clk 1:14:58]} 14. Nfe2 {[%clk 0:40:44]} 14... e5 {[%clk
1:02:35]} 15. Ng3 {[%clk 0:40:05]} 15... Qc7 {[%clk 0:59:46]} 16. e4 {[%clk
0:28:24]} 16... d4 {[%clk 0:59:35]} 17. Nce2 {[%clk 0:28:06]} 17... Rfe8 {[%clk
0:59:10]} 18. Kh1 {[%clk 0:17:12]} 18... Rad8 {[%clk 0:55:57]} 19. f3 {[%clk
0:16:33]} 19... Bf8 {[%clk 0:52:43]} 20. Nf5 {[%clk 0:14:07]} 20... Nd7 {[%clk
0:44:23]} 21. Rac1 {[%clk 0:11:16]} 21... Nc5 {[%clk 0:38:23]} 22. Kg1 {[%clk
0:07:30]} 22... Kh7 {[%clk 0:34:02]} 23. Rfd1 {[%clk 0:05:14]} 23... g6 {[%clk
0:34:01]} 24. Nfg3 {[%clk 0:05:40]} 24... Be7 {[%clk 0:33:52]} 25. Rb1 {[%clk
0:03:59]} 25... Bg5 {[%clk 0:33:00]} 26. Qe1 {[%clk 0:04:16]} 26... Kg7 {[%clk
0:31:42]} 27. Kh1 {[%clk 0:03:56]} 27... h5 {[%clk 0:29:49]} 28. Nf1 {[%clk
0:03:55]} 28... h4 {[%clk 0:28:51]} 29. h3 {[%clk 0:04:15]} 29... Rh8 {[%clk
0:25:20]} 30. Nh2 {[%clk 0:03:34]} 30... Bc8 {[%clk 0:24:05]} 31. Nf1 {[%clk
0:03:19]} 31... Be6 {[%clk 0:24:18]} 32. b4 {[%clk 0:03:26]} 32... Na4 {[%clk
0:22:29]} 33. Kh2 {[%clk 0:03:03]} 33... Rc8 {[%clk 0:22:06]} 34. Kh1 {[%clk
0:02:31]} 34... Qe7 {[%clk 0:18:44]} 35. Kh2 {[%clk 0:02:15]} 35... Nc3 {[%clk
0:18:04]} 36. Nxc3 {[%clk 0:02:41]} 36... Rxc3 {[%clk 0:18:27]} 37. Ra1 {[%clk
0:03:06]} 37... Rhc8 {[%clk 0:18:02]} 38. Qe2 {[%clk 0:02:48]} 38... Bc4 {[%clk
0:17:20]} 39. Qe1 {[%clk 0:02:45]} 39... Qc7 {[%clk 0:14:03]} 40. Kh1 {[%clk
0:02:56]} 40... Bxd3 {[%clk 0:12:59]} 41. cxd3 {[%clk 0:03:10]} 41... Rb3 {[%clk
0:12:04]} 42. Ra2 {[%clk 0:01:26]} 42... Qc3 {[%clk 0:11:48]} 43. Nd2 {[%clk
0:01:01]} 43... Rxa3 {[%clk 0:08:42]} 44. Rxa3 {[%clk 0:01:08]} 44... Qxa3
{[%clk 0:08:58]} 45. Rb1 {[%clk 0:00:54]} 45... Qxd3 {[%clk 0:08:49]} 46. Nb3
{[%clk 0:00:45]} 46... Be7 {[%clk 0:08:04]} 47. Rb2 {[%clk 0:00:34]} 47... Rc3
{[%clk 0:07:35]} 48. Nc1 {[%clk 0:00:56]} 48... Qc4 {[%clk 0:07:32]} 49. Na2
{[%clk 0:01:02]} 49... Re3 {[%clk 0:06:21]} 50. Qd2 {[%clk 0:01:15]} 50... Qf1+
{[%clk 0:06:00]} 51. Kh2 {[%clk 0:01:41]} 51... Re1 {[%clk 0:06:07]} 52. Qxe1
{[%clk 0:01:39]} 52... Qxe1 {[%clk 0:06:30]} 53. Rb3 {[%clk 0:01:09]} 53... Bg5
{[%clk 0:06:39]} 54. f4 {[%clk 0:01:03]} 54... Bxf4+ {[%clk 0:07:00]} 55. g3
{[%clk 0:01:30]} 55... Bxg3+ {[%clk 0:06:53]} 56. Rxg3 {[%clk 0:01:53]} 56...
hxg3+ {[%clk 0:07:13]} 57. Kg2 {[%clk 0:02:21]} 57... Qf2+ {[%clk 0:07:34]} 58.
Kh1 {[%clk 0:02:38]} 58... g2+ 59. Kh2 0-1

[Variant "Standard"]
[Site "Europe Echecs"]

[Event "Championnat du monde jeunes U10"]
[Date "2024.11.24"]
[White "Vydra, David"]
[Black "Zilincan, Tomas"]
[WhiteElo "1615"]
[BlackElo "1778"]
[Round "9.11"]
[Result "1/2-1/2"]
[TimeControl "5400+30"]

1. e4 {[%clk 1:30:30]} 1... e6 {[%clk 1:30:30]} 2. d4 {[%clk 1:30:30]} 2... d5
{[%clk 1:30:30]} 3. Nc3 {[%clk 1:30:30]} 3... Nf6 {[%clk 1:30:30]} 4. Bg5 {[%clk
1:30:30]} 4... dxe4 {[%clk 1:30:30]} 5. Nxe4 {[%clk 1:30:30]} 5... Be7 {[%clk
1:30:30]} 6. Nxf6+ Bxf6 {[%clk 1:30:40]} 7. Bxf6 {[%clk 1:29:30]} 7... Qxf6
{[%clk 1:31:05]} 8. Nf3 {[%clk 1:29:24]} 8... O-O {[%clk 1:31:29]} 9. Bd3 {[%clk
1:28:56]} 9... c5 {[%clk 1:31:00]} 10. Qd2 {[%clk 1:19:33]} 10... cxd4 {[%clk
1:31:10]} 11. Ng5 {[%clk 1:16:33]} 11... h6 {[%clk 1:30:36]} 12. Ne4 {[%clk
1:16:22]} 12... Qe5 {[%clk 1:30:19]} 13. O-O-O {[%clk 1:15:38]} 13... b5 {[%clk
1:29:18]} 14. g4 {[%clk 1:13:58]} 14... Bb7 {[%clk 1:29:21]} 15. f4 {[%clk
1:11:03]} 15... Qd5 {[%clk 1:29:06]} 16. Rhg1 {[%clk 1:07:24]} 16... Qxa2 {[%clk
1:29:18]} 17. Qf2 {[%clk 1:03:34]} 17... Qa1+ {[%clk 1:26:28]} 18. Kd2 Qa5+
{[%clk 1:26:01]} 19. Ke2 {[%clk 1:03:21]} 19... Na6 {[%clk 1:24:55]} 20. g5
{[%clk 1:02:07]} 20... Bxe4 {[%clk 1:16:43]} 21. Bxe4 {[%clk 1:02:22]} 21... h5
{[%clk 1:16:45]} 22. Bxa8 {[%clk 1:02:17]} 22... Rxa8 {[%clk 1:17:03]} 23. Qxd4
{[%clk 1:02:35]} 23... g6 {[%clk 1:16:17]} 24. Qf6 {[%clk 0:59:48]} 24... Nb4
{[%clk 1:16:05]} 25. Rd7 {[%clk 0:57:29]} 25... Rf8 {[%clk 1:16:23]} 26. f5
{[%clk 0:50:57]} 26... exf5 {[%clk 1:15:57]} 27. Rgd1 {[%clk 0:50:20]} 27... Qa2
{[%clk 1:12:50]} 28. Rd8 {[%clk 0:34:59]} 28... Qc4+ {[%clk 1:13:02]} 29. Kf2
{[%clk 0:35:16]} 29... Qf4+ {[%clk 1:13:16]} 30. Kg1 {[%clk 0:35:22]} 30... Qe3+
{[%clk 1:13:24]} 31. Kg2 {[%clk 0:34:59]} 31... Qe2+ {[%clk 1:13:44]} 32. Kg1
{[%clk 0:35:15]} 1/2-1/2

[Variant "Standard"]
[Site "Europe Echecs"]

[Event "Championnat du monde jeunes U10"]
[Date "2024.11.24"]
[White "Prokhorov, Makar"]
[Black "Wang, Yuwei"]
[WhiteElo "1771"]
[BlackElo "1576"]
[Round "9.12"]
[Result "0-1"]
[TimeControl "5400+30"]

1. e4 {[%clk 1:30:59]} 1... c5 {[%clk 1:30:56]} 2. Nf3 {[%clk 1:31:27]} 2... Nc6
{[%clk 1:31:16]} 3. d4 {[%clk 1:31:55]} 3... cxd4 {[%clk 1:31:40]} 4. Nxd4
{[%clk 1:32:21]} 4... Nf6 {[%clk 1:32:05]} 5. Nc3 {[%clk 1:32:16]} 5... e6
{[%clk 1:32:27]} 6. Be3 {[%clk 1:32:33]} 6... Bb4 {[%clk 1:32:37]} 7. Bd3 {[%clk
1:27:14]} 7... d5 {[%clk 1:32:52]} 8. Nxc6 {[%clk 1:17:14]} 8... bxc6 {[%clk
1:33:11]} 9. exd5 {[%clk 1:16:44]} 9... Bxc3+ {[%clk 1:28:00]} 10. bxc3 {[%clk
1:15:35]} 10... Qxd5 {[%clk 1:26:04]} 11. O-O {[%clk 1:15:10]} 11... O-O {[%clk
1:25:22]} 12. c4 {[%clk 1:14:01]} 12... Qa5 {[%clk 1:22:47]} 13. Qf3 {[%clk
1:05:01]} 13... Ba6 {[%clk 1:16:26]} 14. Bd4 {[%clk 0:43:48]} 14... e5 {[%clk
1:14:10]} 15. Qf5 {[%clk 0:42:05]} 15... Rfe8 {[%clk 1:08:27]} 16. Rfe1 {[%clk
0:37:23]} 16... Qa4 {[%clk 0:40:09]} 17. Bxe5 {[%clk 0:20:22]} 17... Bxc4 {[%clk
0:38:22]} 18. Bxf6 {[%clk 0:19:27]} 18... Bxd3 {[%clk 0:38:28]} 19. cxd3 {[%clk
0:13:14]} 19... gxf6 {[%clk 0:34:10]} 20. Qxf6 {[%clk 0:09:42]} 20... Qxa2
{[%clk 0:30:12]} 21. Qxc6 {[%clk 0:07:54]} 21... Rxe1+ {[%clk 0:29:32]} 22. Rxe1
{[%clk 0:08:11]} 22... Rd8 {[%clk 0:27:13]} 23. Qf6 {[%clk 0:07:27]} 23... Qa5
{[%clk 0:25:34]} 24. g3 {[%clk 0:06:22]} 24... Qxe1+ {[%clk 0:26:00]} 25. Kg2
{[%clk 0:06:34]} 0-1

[Variant "Standard"]
[Site "Europe Echecs"]

[Event "Championnat du monde jeunes U10"]
[Date "2024.11.24"]
[White "Tamiolakis, Grigorios"]
[Black "Santoro, Marco Antonio"]
[WhiteElo "1591"]
[BlackElo "1765"]
[Round "9.13"]
[Result "0-1"]
[TimeControl "5400+30"]

1. d4 {[%clk 1:30:59]} 1... d5 {[%clk 1:30:50]} 2. c4 {[%clk 1:31:25]} 2... e6
{[%clk 1:31:04]} 3. Nf3 {[%clk 1:31:48]} 3... c6 {[%clk 1:31:26]} 4. Bg5 {[%clk
1:31:41]} 4... Be7 {[%clk 1:31:44]} 5. Bxe7 {[%clk 1:32:03]} 5... Qxe7 {[%clk
1:31:42]} 6. e3 {[%clk 1:32:27]} 6... Nf6 {[%clk 1:31:58]} 7. cxd5 {[%clk
1:31:14]} 7... exd5 {[%clk 1:32:20]} 8. Nc3 {[%clk 1:31:35]} 8... O-O {[%clk
1:32:13]} 9. Bd3 {[%clk 1:31:25]} 9... Bg4 {[%clk 1:32:27]} 10. O-O {[%clk
1:31:46]} 10... Nbd7 {[%clk 1:31:59]} 11. h3 {[%clk 1:27:07]} 11... Bh5 {[%clk
1:32:13]} 12. Re1 {[%clk 1:26:02]} 12... Ne4 {[%clk 1:29:17]} 13. Qc2 {[%clk
1:13:04]} 13... f5 {[%clk 1:19:36]} 14. Nd2 {[%clk 1:11:09]} 14... Qh4 {[%clk
1:17:36]} 15. Ndxe4 {[%clk 1:08:45]} 15... fxe4 {[%clk 1:17:41]} 16. Bf1 {[%clk
1:08:57]} 16... Rf7 {[%clk 1:11:27]} 17. g3 {[%clk 1:06:16]} 17... Qf6 {[%clk
1:03:26]} 18. Bg2 {[%clk 1:05:51]} 18... Raf8 {[%clk 0:55:26]} 19. Rf1 {[%clk
1:04:28]} 19... Qe7 {[%clk 0:48:58]} 20. Ne2 {[%clk 0:56:34]} 20... Bxe2 {[%clk
0:47:04]} 21. Qxe2 {[%clk 0:56:48]} 21... Qe6 {[%clk 0:37:31]} 22. a4 {[%clk
0:50:31]} 22... Nb8 {[%clk 0:30:45]} 23. Qc2 {[%clk 0:46:24]} 23... Na6 {[%clk
0:29:28]} 24. Qc3 {[%clk 0:44:41]} 24... Qe7 {[%clk 0:26:48]} 25. b3 {[%clk
0:33:22]} 25... Nb4 {[%clk 0:24:21]} 26. Rad1 {[%clk 0:31:54]} 26... Nd3 {[%clk
0:18:10]} 27. Rxd3 {[%clk 0:31:11]} 27... exd3 {[%clk 0:18:16]} 28. Qxd3 {[%clk
0:31:35]} 28... Re8 {[%clk 0:16:10]} 29. Qc3 {[%clk 0:27:59]} 29... Qd7 {[%clk
0:12:48]} 30. b4 {[%clk 0:24:26]} 30... h6 {[%clk 0:09:02]} 31. Qb3 {[%clk
0:19:49]} 31... Rd8 {[%clk 0:08:04]} 32. Rd1 {[%clk 0:17:00]} 32... Kh8 {[%clk
0:06:34]} 33. Bf1 {[%clk 0:09:55]} 33... a6 {[%clk 0:05:02]} 34. Kg2 {[%clk
0:08:37]} 34... Qf5 {[%clk 0:04:48]} 35. Rd2 {[%clk 0:08:45]} 35... g5 {[%clk
0:03:39]} 36. Bd3 {[%clk 0:06:08]} 36... Qf6 {[%clk 0:03:14]} 37. a5 {[%clk
0:04:47]} 37... Kg7 {[%clk 0:02:33]} 38. Bc2 {[%clk 0:03:41]} 38... Rdf8 {[%clk
0:02:08]} 39. g4 {[%clk 0:02:43]} 39... Qf3+ {[%clk 0:01:58]} 40. Kh2 {[%clk
0:02:55]} 40... h5 {[%clk 0:01:38]} 41. Bd1 {[%clk 0:01:25]} 41... Qxf2+ {[%clk
0:01:22]} 42. Rxf2 {[%clk 0:01:40]} 42... Rxf2+ {[%clk 0:01:44]} 43. Kh1 {[%clk
0:01:42]} 43... Rf1+ {[%clk 0:02:10]} 44. Kh2 {[%clk 0:02:00]} 44... R8f2+
{[%clk 0:02:33]} 45. Kg3 {[%clk 0:02:23]} 45... h4# {[%clk 0:02:58]} 0-1

[Variant "Standard"]
[Site "Europe Echecs"]

[Event "Championnat du monde jeunes U10"]
[Date "2024.11.24"]
[White "Sander, Tino"]
[Black "Novac, Daniil"]
[WhiteElo "1736"]
[BlackElo "1594"]
[Round "9.14"]
[Result "1-0"]
[TimeControl "5400+30"]

1. e4 {[%clk 1:30:57]} 1... e5 {[%clk 1:30:56]} 2. Nf3 {[%clk 1:31:19]} 2... Nc6
{[%clk 1:31:20]} 3. Bc4 {[%clk 1:31:40]} 3... Bc5 {[%clk 1:30:39]} 4. c3 {[%clk
1:32:00]} 4... Nf6 {[%clk 1:30:56]} 5. d4 {[%clk 1:32:22]} 5... exd4 {[%clk
1:30:54]} 6. e5 {[%clk 1:32:42]} 6... d5 {[%clk 1:30:47]} 7. Bb5 {[%clk
1:33:03]} 7... Ne4 {[%clk 1:29:37]} 8. cxd4 {[%clk 1:33:20]} 8... Bb6 {[%clk
1:28:54]} 9. Nc3 {[%clk 1:33:13]} 9... Nxc3 {[%clk 1:15:39]} 10. bxc3 {[%clk
1:30:49]} 10... a6 {[%clk 1:13:48]} 11. Bd3 {[%clk 1:28:24]} 11... Bg4 {[%clk
1:08:51]} 12. h3 {[%clk 1:28:17]} 12... Bh5 {[%clk 1:01:51]} 13. Be3 {[%clk
1:27:00]} 13... Qd7 {[%clk 0:59:44]} 14. g4 {[%clk 1:16:56]} 14... Bg6 {[%clk
0:58:47]} 15. Nh4 {[%clk 1:15:25]} 15... Ba5 {[%clk 0:56:13]} 16. Qc2 {[%clk
1:13:28]} 16... Bxd3 {[%clk 0:53:04]} 17. Qxd3 {[%clk 1:12:58]} 17... O-O-O
{[%clk 0:51:16]} 18. f4 {[%clk 1:03:56]} 18... Qe7 {[%clk 0:47:10]} 19. Nf5
{[%clk 1:02:13]} 19... Qa3 {[%clk 0:45:49]} 20. Bd2 {[%clk 1:01:25]} 20... g6
{[%clk 0:43:50]} 21. Nh6 {[%clk 0:58:09]} 21... Qe7 {[%clk 0:37:11]} 22. Qg3
{[%clk 0:49:16]} 22... f6 {[%clk 0:32:18]} 23. Ke2 {[%clk 0:40:05]} 23... fxe5
{[%clk 0:31:26]} 24. fxe5 {[%clk 0:40:11]} 24... Nxd4+ {[%clk 0:30:40]} 25. cxd4
{[%clk 0:40:07]} 25... Bxd2 {[%clk 0:31:02]} 26. Kxd2 {[%clk 0:40:32]} 26...
Qg5+ {[%clk 0:31:24]} 27. Qe3 {[%clk 0:40:56]} 27... Qe7 {[%clk 0:30:20]} 28.
Raf1 {[%clk 0:40:29]} 28... Qb4+ {[%clk 0:22:12]} 29. Qc3 {[%clk 0:40:47]} 29...
Qb5 {[%clk 0:22:16]} 30. a4 {[%clk 0:39:54]} 30... Qxa4 {[%clk 0:21:48]} 31. Nf7
{[%clk 0:40:04]} 31... Qa2+ {[%clk 0:19:52]} 32. Kc1 {[%clk 0:40:01]} 32... b5
{[%clk 0:19:05]} 33. Nxh8 {[%clk 0:39:51]} 33... b4 {[%clk 0:19:22]} 34. Qb2
{[%clk 0:39:00]} 34... Qc4+ {[%clk 0:19:13]} 35. Kb1 {[%clk 0:38:04]} 35... a5
{[%clk 0:16:20]} 36. Nf7 {[%clk 0:36:11]} 36... a4 {[%clk 0:14:50]} 37. Nd6+
{[%clk 0:35:46]} 37... Rxd6 {[%clk 0:14:47]} 38. exd6 {[%clk 0:36:08]} 38... a3
{[%clk 0:14:48]} 39. Qc2 {[%clk 0:35:28]} 39... a2+ {[%clk 0:14:51]} 40. Qxa2
{[%clk 0:35:37]} 1-0

[Variant "Standard"]
[Site "Europe Echecs"]

[Event "Championnat du monde jeunes U10"]
[Date "2024.11.24"]
[White "Roth, Elai"]
[Black "Orsi, Andrea"]
[WhiteElo "1577"]
[BlackElo "1728"]
[Round "9.15"]
[Result "1-0"]
[TimeControl "5400+30"]

1. e4 {[%clk 1:30:54]} 1... e5 {[%clk 1:30:56]} 2. Nf3 {[%clk 1:31:18]} 2... Nc6
{[%clk 1:31:22]} 3. Bc4 {[%clk 1:31:42]} 3... Bc5 {[%clk 1:31:45]} 4. O-O {[%clk
1:31:56]} 4... Nf6 {[%clk 1:31:34]} 5. d4 {[%clk 1:32:14]} 5... exd4 {[%clk
1:31:09]} 6. e5 {[%clk 1:32:31]} 6... d5 {[%clk 1:30:32]} 7. exf6 {[%clk
1:32:45]} 7... dxc4 {[%clk 1:30:01]} 8. fxg7 {[%clk 1:32:43]} 8... Rg8 {[%clk
1:29:52]} 9. Bg5 {[%clk 1:32:58]} 9... Qd5 {[%clk 1:27:58]} 10. Re1+ {[%clk
1:25:41]} 10... Be6 {[%clk 1:24:27]} 11. Nc3 {[%clk 1:25:01]} 11... Qf5 {[%clk
1:12:34]} 12. Ne4 {[%clk 1:24:57]} 12... Be7 {[%clk 1:03:34]} 13. Bxe7 {[%clk
1:17:26]} 13... Kxe7 {[%clk 0:57:14]} 14. Nxd4 {[%clk 1:14:29]} 14... Nxd4
{[%clk 0:57:03]} 15. Qxd4 {[%clk 1:14:48]} 15... Rad8 {[%clk 0:54:12]} 16. Ng3
{[%clk 1:09:20]} 16... Qxc2 {[%clk 0:50:25]} 17. Qc5+ {[%clk 1:09:26]} 17... Ke8
{[%clk 0:48:18]} 18. Nh5 {[%clk 0:56:02]} 18... Qg6 {[%clk 0:32:32]} 19. Qe5
{[%clk 0:50:47]} 19... Ke7 {[%clk 0:25:32]} 20. Qxc7+ {[%clk 0:45:08]} 20... Rd7
{[%clk 0:20:13]} 21. Qc5+ {[%clk 0:45:11]} 21... Ke8 {[%clk 0:16:34]} 22. Qe5
{[%clk 0:39:14]} 22... Ke7 {[%clk 0:14:27]} 23. Rad1 {[%clk 0:33:06]} 23... Rxd1
{[%clk 0:08:28]} 24. Rxd1 {[%clk 0:33:30]} 1-0

[Variant "Standard"]
[Site "Europe Echecs"]

[Event "Championnat du monde jeunes U10"]
[Date "2024.11.24"]
[White "Aghoyan, Gevorg"]
[Black "Veber, Tibor"]
[WhiteElo "1682"]
[BlackElo "1532"]
[Round "9.16"]
[Result "1-0"]
[TimeControl "5400+30"]

1. e4 {[%clk 1:30:57]} 1... e5 {[%clk 1:29:57]} 2. Nf3 {[%clk 1:31:16]} 2... Nf6
{[%clk 1:29:49]} 3. Nxe5 {[%clk 1:31:20]} 3... d6 {[%clk 1:29:10]} 4. Nf3 {[%clk
1:31:37]} 4... Nxe4 {[%clk 1:29:25]} 5. Nc3 {[%clk 1:31:50]} 5... Nxc3 {[%clk
1:28:23]} 6. dxc3 {[%clk 1:32:11]} 6... Be7 {[%clk 1:28:28]} 7. Be3 {[%clk
1:32:22]} 7... Nc6 {[%clk 1:27:55]} 8. Qd2 {[%clk 1:31:09]} 8... O-O {[%clk
1:23:46]} 9. O-O-O {[%clk 1:28:54]} 9... Be6 {[%clk 1:17:54]} 10. Kb1 {[%clk
1:21:18]} 10... Bf6 {[%clk 1:13:07]} 11. h3 {[%clk 1:15:01]} 11... Ne5 {[%clk
1:11:05]} 12. Nxe5 {[%clk 1:12:03]} 12... dxe5 {[%clk 1:08:57]} 13. Bd3 {[%clk
1:10:30]} 13... Qe7 {[%clk 1:05:58]} 14. g4 {[%clk 1:06:43]} 14... g6 {[%clk
1:04:10]} 15. f3 {[%clk 0:58:30]} 15... Rad8 {[%clk 1:01:58]} 16. Qe2 {[%clk
0:53:10]} 16... b6 {[%clk 1:00:17]} 17. h4 {[%clk 0:49:19]} 17... c5 {[%clk
0:58:47]} 18. g5 {[%clk 0:47:19]} 18... Bg7 {[%clk 0:58:47]} 19. h5 {[%clk
0:46:53]} 19... Rd7 {[%clk 0:57:47]} 20. Rdf1 {[%clk 0:37:14]} 20... Rc7 {[%clk
0:53:08]} 21. hxg6 {[%clk 0:33:02]} 21... fxg6 {[%clk 0:53:20]} 22. Qh2 {[%clk
0:33:09]} 22... Bh8 {[%clk 0:53:28]} 23. Bxg6 {[%clk 0:30:52]} 23... Bf5 {[%clk
0:53:27]} 24. Bxf5 {[%clk 0:30:38]} 24... Rxf5 {[%clk 0:53:46]} 25. g6 {[%clk
0:30:18]} 25... Rd7 {[%clk 0:52:40]} 26. gxh7+ {[%clk 0:30:10]} 26... Qxh7
{[%clk 0:52:25]} 27. Rfg1+ {[%clk 0:30:28]} 1-0

[Variant "Standard"]
[Site "Europe Echecs"]

[Event "Championnat du monde jeunes U10"]
[Date "2024.11.24"]
[White "Pierloot, Siebe"]
[Black "Della Penna, Leonardo"]
[WhiteElo "1573"]
[BlackElo "1675"]
[Round "9.17"]
[Result "0-1"]
[TimeControl "5400+30"]

1. e4 c5 {[%clk 1:30:55]} 2. Nf3 {[%clk 1:31:25]} 2... d6 {[%clk 1:31:20]} 3. d4
{[%clk 1:31:53]} 3... cxd4 {[%clk 1:31:44]} 4. Nxd4 {[%clk 1:32:14]} 4... Nf6
{[%clk 1:32:07]} 5. Nc3 {[%clk 1:32:29]} 5... a6 {[%clk 1:32:34]} 6. Be3 {[%clk
1:32:31]} 6... e5 {[%clk 1:32:45]} 7. Nf3 {[%clk 1:32:06]} 7... Qc7 {[%clk
1:28:19]} 8. Be2 {[%clk 1:30:13]} 8... Be7 {[%clk 1:26:12]} 9. O-O {[%clk
1:30:21]} 9... O-O {[%clk 1:24:53]} 10. Qd3 {[%clk 1:29:24]} 10... b5 {[%clk
1:23:20]} 11. a3 {[%clk 1:28:56]} 11... Rd8 {[%clk 1:17:14]} 12. Rad1 {[%clk
1:25:56]} 12... Nbd7 {[%clk 1:15:44]} 13. Rfe1 {[%clk 1:25:50]} 13... Bb7 {[%clk
1:07:30]} 14. Nd2 {[%clk 1:23:30]} 14... Nc5 {[%clk 1:05:43]} 15. Bxc5 {[%clk
1:23:08]} 15... dxc5 {[%clk 1:05:57]} 16. Qf3 {[%clk 1:21:26]} 16... c4 {[%clk
1:02:30]} 17. Qg3 {[%clk 1:18:57]} 17... Bc6 {[%clk 0:59:22]} 18. f3 {[%clk
1:17:04]} 18... Bd7 {[%clk 0:52:41]} 19. Kh1 {[%clk 1:15:16]} 19... Be6 {[%clk
0:51:12]} 20. h3 {[%clk 1:13:07]} 20... Nh5 {[%clk 0:50:32]} 21. Qh2 {[%clk
1:12:08]} 21... Bh4 {[%clk 0:46:49]} 22. Rf1 {[%clk 1:12:03]} 22... Ng3+ {[%clk
0:46:27]} 23. Kg1 {[%clk 1:12:21]} 23... Nxf1 {[%clk 0:46:19]} 24. Kxf1 {[%clk
1:12:29]} 24... Qa7 {[%clk 0:44:47]} 25. Qg1 {[%clk 1:10:32]} 25... Qxg1+ {[%clk
0:42:36]} 0-1

[Variant "Standard"]
[Site "Europe Echecs"]